{"text_format":"1","workbook":"xlsx","n_sheets":14,"sheets":["入力手順","表紙、項目Ⅰ","項目Ⅱ１.２.","項目Ⅱ３.(削除)","項目Ⅱ３.(追加)","項目Ⅱ４.","項目Ⅲ１.~２.","項目Ⅲ２.","項目Ⅲ２.~３.","項目Ⅲ４.(削除)","項目Ⅲ４.(追加)","項目Ⅲ５.","エラーリスト","チェック"],"not_rendered":{"charts":0,"images":0,"macros":1,"external_links":1,"defined_names":134,"comments":11,"pivot_tables":0},"unopened":[],"bounds":{"document_bytes":16777216,"sheet_cells":100000,"rows_first":2000,"rows_last":500,"rows_between":2000,"halvings":0,"cell_chars":16384,"cell_head_chars":4096},"cells_cut":0,"cells_raw":0,"read":"whole","date_system":"1900"}

{"sheet":"入力手順","index":0,"n_rows":4,"n_cols":11,"rows_kept":4,"cut":false,"hidden":false,"merged":[[71,2,73,9],[29,2,31,9],[65,2,67,9],[5,2,7,9],[11,2,13,9],[17,2,19,9],[23,2,25,9],[35,2,37,9],[41,2,43,9],[47,2,49,9],[59,2,61,9],[53,2,55,9]]}
[]
[]
[]
[null,null,null,null,null,null,null,null,null,null,"R5.5版"]

{"sheet":"表紙、項目Ⅰ","index":1,"n_rows":54,"n_cols":24,"rows_kept":54,"cut":false,"hidden":false,"merged":[[49,2,54,5],[26,10,26,16],[7,15,7,17],[34,6,34,17],[22,10,22,17],[9,2,9,17],[17,11,17,12],[30,7,30,9],[28,7,28,9],[21,7,22,9],[21,12,21,16],[43,2,48,5],[46,8,46,13],[47,8,47,13],[48,8,48,13],[44,6,45,17],[26,7,26,9],[34,2,34,5],[38,7,38,17],[33,2,33,7],[6,15,6,17],[37,7,37,17],[28,10,28,16],[6,12,6,14],[30,10,30,16],[14,2,14,5],[7,12,7,14],[24,7,24,9],[24,10,24,16],[43,8,43,13],[32,2,32,17],[35,7,35,17],[36,7,36,17],[35,2,42,5],[39,7,39,17],[40,7,40,17],[41,7,41,17],[42,7,42,17]]}
[]
[]
[]
[]
[1]
[null,null,null,null,null,null,null,null,null,null,null,null,null,null,null,null,null,null,null,null,{"$f":"IF(A8=1,X8,IF(A9=1,U8,IF(A9=2,V8,IF(A9=3,W8,\"error\"))))","v":"様式第１２"}]
[null,null,null,null,null,null,null,null,null,null,null,null,"※受理年月日",null,null,null,null,null,null,null,{"$f":"IF(A8=1,X9,IF(A9=1,U9,IF(A9=2,V9,IF(A9=3,W9,\"error\"))))","v":"（第１９条関係）"}]
[1,null,null,null,null,null,null,null,null,null,null,null,"※処理年月日",null,null,null,null,null,null,null,"様式第３","様式第７","様式第２４","様式第１２"]
[0,null,null,null,null,null,null,null,null,null,null,null,null,null,null,null,null,null,null,null,"（第５条関係）","（第１１条関係）","（第３１条関係）","（第１９条関係）"]
[null,null,"中 長 期 計 画 書",null,null,null,null,null,null,null,null,null,null,null,null,null,null,null,null,null," エネルギーの使用の合理化及び非化石エネルギーへの転換等に関する法律第106条の規定に基づき、次のとおり提出します。\n\nⅠ　特定輸送事業者の名称等"," エネルギーの使用の合理化及び非化石エネルギーへの転換等に関する法律第130条の規定に基づき、次のとおり提出します。\n\nⅠ　特定輸送事業者の名称等"," エネルギーの使用の合理化及び非化石エネルギーへの転換等に関する法律第144条の規定に基づき、次のとおり提出します。\n\nⅠ　特定航空輸送事業者の名称等"," エネルギーの使用の合理化及び非化石エネルギーへの転換等に関する法律第135条の規定に基づき、次のとおり提出します。\n\nⅠ　特定輸送事業者の名称等"]
[null,null,null,null,null,null,null,null,null,null,null,null,null,null,null,null,null,null,null,null,"鉄道による貨物の輸送　","鉄道による旅客の輸送　","-","鉄道による貨物の輸送　"]
[null,null,null,null,null,null,null,null,null,null,null,null,null,null,null,null,null,null,null,null,"事業用貨物自動車による貨物の輸送","乗合自動車による旅客の輸送","-","事業用貨物自動車による貨物の輸送"]
[null,null,null,null,null,null,null,null,null,null,null,null,null,null,null,null,null,null,null,null,"自家用貨物自動車による貨物の輸送　　　　　　　　　　","乗用自動車（乗合自動車を除く。）による旅客の輸送","-","自家用貨物自動車による貨物の輸送　　　　　　　　　　"]
[null,null,null,null,null,null,null,null,null,null,null,null,null,null,null,null,null,null,null,null,"船舶による貨物の輸送","船舶による旅客の輸送","-","船舶による貨物の輸送"]
[null,null,"地方運輸局長",null,null,null,"殿",null,null,null,null,null,null,null,null,null,null,null,null,null,"-","-","-","鉄道による旅客の輸送　"]
[null,null,null,null,null,null,null,null,null,null,null,null,null,null,null,null,null,null,null,null,"-","-","-","乗合自動車による旅客の輸送"]
[null,null,null,null,null,null,null,null,null,null,null,null,null,null,null,null,null,null,null,null,"-","-","-","乗用自動車（乗合自動車を除く。）による旅客の輸送"]
[null,null,null,null,null,null,null,null,null,null,{"$f":"IF($A$5=1,\"西暦\",\"\")","v":"西暦"},2024,null,"年",null,"月",null,"日",null,null,"-","-","-","船舶による旅客の輸送"]
[null,null,null,null,null,null,null,null,null,null,null,null,null,null,null,null,null,null,null,null,"貨物輸送区分","旅客輸送区分","-","主たる\n貨客輸送区分"]
[]
[null,null,null,null,null,null,null,null,null,null,null,null,null,null,null,null,null,null,null,null,"年","月","日"]
[null,null,null,null,null,null,null,"住　所",null,null,"〒","(",null,null,null,null,null,"   ）",null,2024,2023,1,1]
[null,null,null,null,null,null,null,null,null,null,null,null,null,null,null,null,null,null,null,null,{"$f":"U22+1","v":2024},2,2]
[null,null,null,null,null,null,null,null,null,null,null,null,null,null,null,null,null,null,null,null,{"$f":"U23+1","v":2025},3,3]
[null,null,null,null,null,null,null,"法人名",null,null,null,null,null,null,null,null,null,null,null,null,{"$f":"U22+1","v":2024},4,4]
[null,null,null,null,null,null,null,null,null,null,null,null,null,null,null,null,null,null,null,null,2025,5,5]
[null,null,null,null,null,null,null,"法人番号",null,null,null,null,null,null,null,null,null,null,null,null,{"$f":"U24+1","v":2026},4,4]
[null,null,null,null,null,null,null,null,null,null,null,null,null,null,null,null,null,null,null,null,2027,5,5]
[null,null,null,null,null,null,null,"代表者の役職名",null,null,null,null,null,null,null,null,null,null,null,null,2028,6,6]
[null,null,null,null,null,null,null,null,null,null,null,null,null,null,null,null,null,null,null,null,2029,7,7]
[null,null,null,null,null,null,null,"代表者の氏名",null,null,null,null,null,null,null,null,null,null,null,null,2030,8,8]
[null,null,null,null,null,null,null,null,null,null,null,null,null,null,null,null,null,null,null,null,2031,9,9]
[null,null,{"$f":"IF(A8=1,X10,IF(A9=1,U10,IF(A9=2,V10,IF(A9=3,W10,\"error\"))))","v":" エネルギーの使用の合理化及び非化石エネルギーへの転換等に関する法律第135条の規定に基づき、次のとおり提出します。\n\nⅠ　特定輸送事業者の名称等"},null,null,null,null,null,null,null,null,null,null,null,null,null,null,null,null,null,2032,10,10]
[null,null,{"$f":"IF(A8=1,\"認定管理統括貨客輸送事業者\"&CHAR(10)&\"指定番号\",\"特定輸送事業者指定番号\")","v":"認定管理統括貨客輸送事業者\n指定番号"},null,null,null,null,null,null,null,null,null,null,null,null,null,{"$f":"IF($A$8=0,A9,\"\")","v":""},null,null,null,null,11,11]
[1,null,"事業者名",null,null,null,null,null,null,null,null,null,null,null,null,null,null,null,null,null,null,12,12]
[1,null,{"$f":"IF(A8=1,X19,IF(A9=1,U19,IF(A9=2,V19,W19)))","v":"主たる\n貨客輸送区分"},null,null,null,{"$f":"IF($A35=1,\"①．\",\"１．\")","v":"①．"},{"$f":"IF($A$8=1,X11,IF($A$9=1,U11,IF($A$9=2,V11,IF($A$9=3,W11,\"error\"))))","v":"鉄道による貨物の輸送　"},null,null,null,null,null,null,null,null,null,null,null,null,null,null,13]
[2,null,null,null,null,null,{"$f":"IF($A35=2,\"②．\",\"２．\")","v":"２．"},{"$f":"IF($A$8=1,X12,IF($A$9=1,U12,IF($A$9=2,V12,IF($A$9=3,W12,\"error\"))))","v":"事業用貨物自動車による貨物の輸送"},null,null,null,null,null,null,null,null,null,null,null,null,null,{"$f":"IF(OR($O$18=1,$O$18=3,$O$18=5,$O$18=7,$O$18=8,$O$18=10,$O$18=12),1,IF(OR($O$18=4,$O$18=6,$O$18=9,$O$18=11),2,IF(MOD($L$18,4)=0,3,IF($O$18=2,4,1))))","v":3},14]
[3,null,null,null,null,null,{"$f":"IF($A35=3,\"③．\",\"３．\")","v":"３．"},"自家用貨物自動車による貨物の輸送　　　　　　　　　　",null,null,null,null,null,null,null,null,null,null,null,null,"代表取締役社長",null,15]
[4,null,null,null,null,null,{"$f":"IF($A35=4,\"④．\",\"４．\")","v":"４．"},"船舶による貨物の輸送",null,null,null,null,null,null,null,null,null,null,null,null,"代表取締役",null,16]
[5,null,null,null,null,null,{"$f":"IF($A35=5,\"⑤．\",\"５．\")","v":"５．"},"鉄道による旅客の輸送　",null,null,null,null,null,null,null,null,null,null,null,null,"取締役社長",null,17]
[6,null,null,null,null,null,{"$f":"IF($A35=6,\"⑥．\",\"６．\")","v":"６．"},"乗合自動車による旅客の輸送",null,null,null,null,null,null,null,null,null,null,null,null,"代表取締役会長\n",null,18]
[7,null,null,null,null,null,{"$f":"IF($A35=7,\"⑦．\",\"７．\")","v":"７．"},"乗用自動車（乗合自動車を除く。）による旅客の輸送",null,null,null,null,null,null,null,null,null,null,null,null,"代表取締役専務",null,19]
[8,null,null,null,null,null,{"$f":"IF($A35=8,\"⑧．\",\"８．\")","v":"８．"},"船舶による旅客の輸送",null,null,null,null,null,null,null,null,null,null,null,null,"専務理事",null,20]
[null,null,"主たる事務所の所在地",null,null,null,"〒","(",null,null,null,null,null,null,"  ）",null,null,null,null,null,"代表理事",null,21]
[null,null,null,null,null,null,null,null,null,null,null,null,null,null,null,null,null,null,null,null,"理事長",null,22]
[null,null,null,null,null,null,null,null,null,null,null,null,null,null,null,null,null,null,null,null,"交通局局長",null,23]
[null,null,null,null,null,null,"電話","(",null,null,null,null,null,null,"  ）",null,null,null,null,null,null,null,24]
[null,null,null,null,null,null,"FAX","(",null,null,null,null,null,null,"  )",null,null,null,null,null,null,null,25]
[null,null,null,null,null,null,"e-mail　　　　　　　　　　　　　　　　　","(",null,null,null,null,null,null,"  )",null,null,null,null,null,null,null,26]
[2,null,"中長期計画書の\n提出免除の希望",null,null,null,"中長期計画書の提出頻度の軽減の条件に該当しており、",null,null,null,null,null,null,null,null,null,null,null,null,null,null,null,27]
["希望する",null,null,null,null,null,"当該条件を満たす限り、翌年度以降は下記の計画期間中の",null,null,null,null,null,null,null,null,null,null,null,null,null,null,null,28]
["希望しない",null,null,null,null,null,"中長期計画書の提出免除を",null,null,null,null,null,null,null,null,null,null,null,null,null,null,null,29]
[null,null,null,null,null,null,null,null,null,null,null,null,null,null,null,null,null,null,null,null,null,null,30]
[null,null,null,null,null,null,{"$f":"IF(A50=1,\"☑\",\"□\")","v":"□"},"希望する",null,null,null,null,null,null,null,null,null,null,null,null,null,null,31]

{"sheet":"項目Ⅱ１.２.","index":2,"n_rows":38,"n_cols":24,"rows_kept":38,"cut":false,"hidden":false,"merged":[[26,2,26,4],[26,15,26,17],[28,2,28,4],[28,15,28,17],[27,2,27,4],[27,15,27,17],[26,5,26,11],[27,5,27,11],[28,5,28,11],[26,12,26,14],[27,12,27,14],[28,12,28,14],[20,2,20,4],[20,15,20,17],[21,2,21,4],[21,15,21,17],[20,5,20,11],[21,5,21,11],[20,12,20,14],[21,12,21,14],[22,2,22,4],[22,15,22,17],[23,2,23,4],[23,15,23,17],[22,5,22,11],[23,5,23,11],[22,12,22,14],[23,12,23,14],[14,2,14,4],[14,15,14,17],[15,2,15,4],[15,15,15,17],[14,5,14,11],[15,5,15,11],[14,12,14,14],[15,12,15,14],[5,2,5,17],[7,4,7,5],[7,8,7,9],[9,2,9,17],[11,2,13,4],[11,15,13,17],[11,5,13,11],[11,12,13,14],[16,2,16,4],[16,15,16,17],[17,2,17,4],[17,15,17,17],[16,5,16,11],[17,5,17,11],[16,12,16,14],[17,12,17,14],[18,2,18,4],[18,15,18,17],[19,2,19,4],[19,15,19,17],[18,5,18,11],[19,5,19,11],[18,12,18,14],[19,12,19,14],[24,2,24,4],[24,15,24,17],[25,2,25,4],[25,15,25,17],[24,5,24,11],[25,5,25,11],[24,12,24,14],[25,12,25,14]]}
[null,null,null,null,null,null,null,null,null,"q"]
[]
[]
[]
[1]
["貨",null,"Ⅱ　エネルギーの使用の合理化に関する計画\n　１．計画期間"]
[]
[false,null,null,{"$f":"IF($A$5=1,\"西暦\",\"\")","v":"西暦"},2024,null,"年度","～",null,null,"年度",null,null,"計画内容に変更なし",null,null,null,null,null,{"$f":"T9+-1","v":2014}]
[null,null,null,null,null,null,null,null,null,null,null,null,null,null,null,null,null,null,null,2015]
[null,null,"　２．計画内容及びエネルギー使用合理化期待効果",null,null,null,null,null,null,null,null,null,null,null,null,null,null,null,null,2016]
[null,null,null,null,null,null,null,null,null,null,null,null,null,null,null,null,null,null,null,2017]
[null,"　","対　策",null,null,"計　画　内　容",null,null,null,null,null,null,"実施時期",null,null,"エネルギー使用\n合理化期待効果\n（原油換算kl/年）",null,null,null,2018]
[null,null,null,null,null,null,null,null,null,null,null,null,null,null,null,null,null,null,null,2019]
[null,null,null,null,null,null,null,null,null,null,null,null,null,null,null,null,null,null,null,2020]
[null,null,null,null,null,null,null,null,null,null,null,null,null,null,null,null,null,null,null,2021,{"$f":"IF(C15=\"\",\"a\"&CHAR(10)&\"a\"&CHAR(10),C15&CHAR(10))","v":"a\na\n"},{"$f":"IF(F15=\"\",\"a\"&CHAR(10)&\"a\"&CHAR(10),F15&CHAR(10))","v":"a\na\n"},{"$f":"IF(M15=\"\",\"a\"&CHAR(10)&\"a\"&CHAR(10),M15&CHAR(10))","v":"a\na\n"},{"$f":"IF(P15=\"\",\"a\"&CHAR(10)&\"a\"&CHAR(10),P15&CHAR(10))","v":"a\na\n"}]
[null,null,null,null,null,null,null,null,null,null,null,null,null,null,null,null,null,null,null,2022,{"$f":"IF(C16=\"\",\"a\"&CHAR(10)&\"a\"&CHAR(10),C16&CHAR(10))","v":"a\na\n"},{"$f":"IF(F16=\"\",\"a\"&CHAR(10)&\"a\"&CHAR(10),F16&CHAR(10))","v":"a\na\n"},{"$f":"IF(M16=\"\",\"a\"&CHAR(10)&\"a\"&CHAR(10),M16&CHAR(10))","v":"a\na\n"},{"$f":"IF(P16=\"\",\"a\"&CHAR(10)&\"a\"&CHAR(10),P16&CHAR(10))","v":"a\na\n"}]
[null,null,null,null,null,null,null,null,null,null,null,null,null,null,null,null,null,null,null,{"$f":"T18+-1","v":2023},"a\na\n","a\na\n","a\na\n","a\na\n"]
[null,null,null,null,null,null,null,null,null,null,null,null,null,null,null,null,null,null,null,2024,"a\na\n","a\na\n","a\na\n","a\na\n"]
[null,null,null,null,null,null,null,null,null,null,null,null,null,null,null,null,null,null,null,{"$f":"T18+1","v":2025},"a\na\n","a\na\n","a\na\n","a\na\n"]
[null,null,null,null,null,null,null,null,null,null,null,null,null,null,null,null,null,null,null,{"$f":"T19+1","v":2026},"a\na\n","a\na\n","a\na\n","a\na\n"]
[null,null,null,null,null,null,null,null,null,null,null,null,null,null,null,null,null,null,null,2027,"a\na\n","a\na\n","a\na\n","a\na\n"]
[null,null,null,null,null,null,null,null,null,null,null,null,null,null,null,null,null,null,null,2028,"a\na\n","a\na\n","a\na\n","a\na\n"]
[null,null,null,null,null,null,null,null,null,null,null,null,null,null,null,null,null,null,null,2029,"a\na\n","a\na\n","a\na\n","a\na\n"]
[null,null,null,null,null,null,null,null,null,null,null,null,null,null,null,null,null,null,null,2030,"a\na\n","a\na\n","a\na\n","a\na\n"]
[null,null,null,null,null,null,null,null,null,null,null,null,null,null,null,null,null,null,null,2031,"a\na\n","a\na\n","a\na\n","a\na\n"]
[null,null,null,null,null,null,null,null,null,null,null,null,null,null,null,null,null,null,null,2032,"a\na\n","a\na\n","a\na\n","a\na\n"]
[null,null,null,null,null,null,null,null,null,null,null,null,null,null,null,null,null,null,null,2033,"a\na\n","a\na\n","a\na\n","a\na\n"]
[null,null,null,null,null,null,null,null,null,null,null,null,null,null,null,null,null,null,null,2034,"a\na\n","a\na\n","a\na\n","a\na\n"]
[null,null,null,null,null,null,null,null,null,null,null,null,null,null,null,null,null,null,null,2035,"a\na\n","a\na\n","a\na\n","a\na\n"]
[null,null,null,null,null,null,null,null,null,null,null,null,null,null,null,null,null,null,null,2036,null,"a\na\n"]
[null,null,null,null,null,null,null,null,null,null,null,null,null,null,null,null,null,null,null,2037]
[null,null,null,null,null,null,null,null,null,null,null,null,null,null,null,null,null,null,null,2038]
[null,null,null,null,null,null,null,null,null,null,null,null,null,null,null,null,null,null,null,2039]
[null,null,null,null,null,null,null,null,null,null,null,null,null,null,null,null,null,null,null,2040]
[null,null,null,null,null,null,null,null,null,null,null,null,null,null,null,null,null,null,null,2041]
[null,null,null,null,null,null,null,null,null,null,null,null,null,null,null,null,null,null,null,2042]
[null,null,null,null,null,null,null,null,null,null,null,null,null,null,null,null,null,null,null,2043]
[null,null,null,null,null,null,null,null,null,null,null,null,null,null,null,null,null,null,null,2044]

{"sheet":"項目Ⅱ３.(削除)","index":3,"n_rows":20,"n_cols":9,"rows_kept":20,"cut":false,"hidden":false,"merged":[[5,2,5,4],[7,2,9,2],[7,3,9,3],[7,4,9,4]]}
[]
[]
[]
[]
[1]
["貨",null,"３．前年度計画書との比較（削除された計画）"]
[]
[null,"　","対　策","削　除　さ　れ　た　計　画","理　由"]
[]
[]
[null,null,null,null,null,null,{"$f":"IF(C11=\"\",\"a\"&CHAR(10)&\"a\"&CHAR(10)&\"a\"&CHAR(10),C11&CHAR(10))","v":"a\na\na\n"},{"$f":"IF(D11=\"\",\"a\"&CHAR(10)&\"a\"&CHAR(10)&\"a\"&CHAR(10),D11&CHAR(10))","v":"a\na\na\n"},{"$f":"IF(E11=\"\",\"a\"&CHAR(10)&\"a\"&CHAR(10)&\"a\"&CHAR(10),E11&CHAR(10))","v":"a\na\na\n"}]
[null,null,null,null,null,null,{"$f":"IF(C12=\"\",\"a\"&CHAR(10)&\"a\"&CHAR(10)&\"a\"&CHAR(10),C12&CHAR(10))","v":"a\na\na\n"},{"$f":"IF(D12=\"\",\"a\"&CHAR(10)&\"a\"&CHAR(10)&\"a\"&CHAR(10),D12&CHAR(10))","v":"a\na\na\n"},{"$f":"IF(E12=\"\",\"a\"&CHAR(10)&\"a\"&CHAR(10)&\"a\"&CHAR(10),E12&CHAR(10))","v":"a\na\na\n"}]
[null,null,null,null,null,null,"a\na\na\n","a\na\na\n","a\na\na\n"]
[null,null,null,null,null,null,"a\na\na\n","a\na\na\n","a\na\na\n"]
[null,null,null,null,null,null,"a\na\na\n","a\na\na\n","a\na\na\n"]
[null,null,null,null,null,null,"a\na\na\n","a\na\na\n","a\na\na\n"]
[null,null,null,null,null,null,"a\na\na\n","a\na\na\n","a\na\na\n"]
[null,null,null,null,null,null,"a\na\na\n","a\na\na\n","a\na\na\n"]
[null,null,null,null,null,null,"a\na\na\n","a\na\na\n","a\na\na\n"]
[null,null,null,null,null,null,"a\na\na\n","a\na\na\n","a\na\na\n"]

{"sheet":"項目Ⅱ３.(追加)","index":4,"n_rows":20,"n_cols":10,"rows_kept":20,"cut":false,"hidden":false,"merged":[[5,2,5,4],[7,2,9,2],[7,3,9,3],[7,4,9,4]]}
[]
[]
[]
[]
[1]
["貨",null,"３．前年度計画書との比較（追加された計画）"]
[]
[null,"　","対　策","追　加　さ　れ　た　計　画","理　由"]
[]
[]
[null,null,null,null,null,null,null,{"$f":"IF(C11=\"\",\"a\"&CHAR(10)&\"a\"&CHAR(10)&\"a\"&CHAR(10),C11&CHAR(10))","v":"a\na\na\n"},{"$f":"IF(D11=\"\",\"a\"&CHAR(10)&\"a\"&CHAR(10)&\"a\"&CHAR(10),D11&CHAR(10))","v":"a\na\na\n"},{"$f":"IF(E11=\"\",\"a\"&CHAR(10)&\"a\"&CHAR(10)&\"a\"&CHAR(10),E11&CHAR(10))","v":"a\na\na\n"}]
[null,null,null,null,null,null,null,{"$f":"IF(C12=\"\",\"a\"&CHAR(10)&\"a\"&CHAR(10)&\"a\"&CHAR(10),C12&CHAR(10))","v":"a\na\na\n"},{"$f":"IF(D12=\"\",\"a\"&CHAR(10)&\"a\"&CHAR(10)&\"a\"&CHAR(10),D12&CHAR(10))","v":"a\na\na\n"},{"$f":"IF(E12=\"\",\"a\"&CHAR(10)&\"a\"&CHAR(10)&\"a\"&CHAR(10),E12&CHAR(10))","v":"a\na\na\n"}]
[null,null,null,null,null,null,null,"a\na\na\n","a\na\na\n","a\na\na\n"]
[null,null,null,null,null,null,null,"a\na\na\n","a\na\na\n","a\na\na\n"]
[null,null,null,null,null,null,null,"a\na\na\n","a\na\na\n","a\na\na\n"]
[null,null,null,null,null,null,null,"a\na\na\n","a\na\na\n","a\na\na\n"]
[null,null,null,null,null,null,null,"a\na\na\n","a\na\na\n","a\na\na\n"]
[null,null,null,null,null,null,null,"a\na\na\n","a\na\na\n","a\na\na\n"]
[null,null,null,null,null,null,null,"a\na\na\n","a\na\na\n","a\na\na\n"]
[null,null,null,null,null,null,null,"a\na\na\n","a\na\na\n","a\na\na\n"]

{"sheet":"項目Ⅱ４.","index":5,"n_rows":9,"n_cols":8,"rows_kept":9,"cut":false,"hidden":false,"merged":[[5,2,5,4],[7,2,8,4]]}
[]
[]
[]
[]
[1]
["貨",null,"４．その他計画に関連する事項"]
[]
[null,"　",null,null,null,null,null,"a\na\na\na\na\na\na\na\na\na\na\na\na\na\na\na"]
[null,null,null,null,null,null,null,"a"]

{"sheet":"項目Ⅲ１.~２.","index":6,"n_rows":37,"n_cols":25,"rows_kept":37,"cut":false,"hidden":false,"merged":[[21,12,21,15],[22,12,22,15],[23,2,23,6],[23,7,23,11],[24,2,24,6],[24,7,24,11],[23,12,23,15],[24,12,24,15],[20,2,20,6],[20,7,20,11],[21,2,21,6],[21,7,21,11],[22,2,22,6],[22,7,22,11],[5,2,5,17],[7,8,7,9],[9,2,9,17],[12,12,12,15],[13,2,13,11],[13,12,13,15],[7,4,7,5],[11,12,11,16],[11,2,12,11],[14,3,14,16],[28,2,28,5],[25,2,25,6],[25,7,25,11],[26,2,26,6],[26,7,26,11],[18,12,18,15],[19,12,19,15],[20,12,20,15],[16,2,17,11],[16,12,16,16],[17,12,17,15],[18,2,18,6],[18,7,18,11],[19,2,19,6],[19,7,19,11],[28,6,28,7],[28,13,28,16],[28,8,28,12],[25,12,25,15],[26,12,26,15],[29,2,29,5],[29,8,29,11],[30,8,30,11],[29,13,29,15],[30,13,30,15],[30,2,30,5]]}
[]
[]
[]
[]
[1]
["貨",null,"Ⅲ　非化石エネルギーへの転換に関する計画\n１．計画期間",null,null,null,null,null,null,null,null,null,null,null,null,null,null,null,null,null,"a\na"]
[]
[false,null,null,{"$f":"IF($A$5=1,\"西暦\",\"\")","v":"西暦"},2024,null,"年度","～",2030,null,"年度",null,null,"計画内容に変更なし",null,null,null,null,null,{"$f":"T9+-1","v":2015}]
[null,null,null,null,null,null,null,null,null,null,null,null,null,null,null,null,null,null,null,2016]
[null,null,{"$f":"IF('表紙、項目Ⅰ'!$A$8=1,W10,IF('表紙、項目Ⅰ'!$A$9=3,Y10,V10))","v":"２．非化石エネルギーへの転換の目標\n　２－１．定量的な目標\n　（１）貨物輸送に係る電気車における非化石電気の使用割合"},null,null,null,null,null,null,null,null,null,null,null,null,null,null,null,null,{"$f":"T11+-1","v":2017},"a\na\na","２．非化石エネルギーへの転換の目標\n　２－１．定量的な目標\n　（１）電気車における非化石電気の使用割合","２．非化石エネルギーへの転換の目標\n　２－１．定量的な目標\n　（１）貨物輸送に係る電気車における非化石電気の使用割合","２．非化石エネルギーへの転換の目標\n　２－１．定量的な目標\n　（１）旅客輸送に係る電気車における非化石電気の使用割合","２．非化石エネルギーへの転換の目標\n　２－１．定量的な目標\n　（１）ＳＡＦの使用割合"]
[null,"　",null,null,null,null,null,null,null,null,null,null,null,null,null,null,null,null,null,2018]
[null,null,null,null,null,null,null,null,null,null,null,null,"目標",null,null,null,null,null,null,2019]
[false,null,null,null,null,null,null,null,null,null,null,null,{"$f":"IF($A$8=FALSE,$I$8,\"\")","v":2030},null,null,null,"年度",null,null,2020]
[false,null,{"$f":"IF(AND('表紙、項目Ⅰ'!$A$8=0,'表紙、項目Ⅰ'!$A$9=3),W14,V14)","v":"・　使用電気全体（自家発電を含む。）\n・　外部調達電気\nに占める非化石エネルギーの割合"},null,null,null,null,null,null,null,null,null,null,null,null,null,"％",null,null,2021,"a\na\na\na","・　使用電気全体（自家発電を含む。）\n・　外部調達電気\nに占める非化石エネルギーの割合","使用燃料全体に占めるＳＡＦの使用量の割合"]
[null,null,{"$f":"IF(AND('表紙、項目Ⅰ'!$A$8=0,'表紙、項目Ⅰ'!$A$9=3),\"\",V15)","v":"備考"},{"$f":"IF(AND('表紙、項目Ⅰ'!$A$8=0,'表紙、項目Ⅰ'!$A$9=3),\"\",W15)","v":"非化石電気の割合（使用電気全体（自家発電を含む。）又は外部調達電気）は、記載する項目に☑印を付すこと。"},null,null,null,null,null,null,null,null,null,null,null,null,null,null,null,2022,"a\na\na","備考","非化石電気の割合（使用電気全体（自家発電を含む。）又は外部調達電気）は、記載する項目に☑印を付すこと。"]
[null,null,{"$f":"IF(AND('表紙、項目Ⅰ'!$A$8=0,'表紙、項目Ⅰ'!$A$9=2),W16,V16)","v":"　（２）非化石エネルギー自動車の使用割合（車両総重量８トン以下の貨物自動車）"},null,null,null,null,null,null,null,null,null,null,null,null,null,null,null,null,{"$f":"T17+-1","v":2023},null,"　（２）非化石エネルギー自動車の使用割合（車両総重量８トン以下の貨物自動車）","　（２）非化石エネルギー自動車の使用割合（バス、タクシー）"]
[null,null,"区分",null,null,null,null,null,null,null,null,null,"目標",null,null,null,null,null,null,2024,"a"]
[null,null,null,null,null,null,null,null,null,null,null,null,{"$f":"IF($A$8=FALSE,$I$8,\"\")","v":2030},null,null,null,"年度",null,null,{"$f":"T17+1","v":2025},"a"]
[null,null,"電気自動車",null,null,null,null,"①",null,null,null,null,null,null,null,null,"台",null,null,{"$f":"T18+1","v":2026},"a\na\na"]
[null,null,"水素自動車\n（燃料電池自動車を含む。）",null,null,null,null,"②",null,null,null,null,null,null,null,null,"台",null,null,2027,"a\na\na"]
[null,null,"プラグインハイブリッド自動車",null,null,null,null,"③",null,null,null,null,null,null,null,null,"台",null,null,2028,"a\na\na"]
[null,null,"専らバイオ燃料・合成燃料を\n使用する自動車",null,null,null,null,"④",null,null,null,null,null,null,null,null,"台",null,null,2029,"a\na\na"]
[null,null,"非化石エネルギー自動車の合計",null,null,null,null,"⑤＝①＋②＋③＋④",null,null,null,null,{"$f":"SUM(M19:P22)","v":0},null,null,null,"台",null,null,2030,"a\na\na"]
[null,null,{"$f":"IF(AND('表紙、項目Ⅰ'!$A$8=0,'表紙、項目Ⅰ'!$A$9=2),W24,V24)","v":"貨物輸送に使用する自動車の合計"},null,null,null,null,"⑥",null,null,null,null,null,null,null,null,"台",null,null,2031,"a\na\na","貨物輸送に使用する自動車の合計","旅客輸送に使用する自動車の合計"]
[null,null,"非化石エネルギー自動車割合",null,null,null,null,"⑦＝⑤／⑥×100",null,null,null,null,{"$f":"IF(AND(M23>0,M24>0),M23/M24*100,0)","v":0},null,null,null,"％",null,null,2032,"a\na\na"]
[null,null,"（参考）ハイブリッド自動車",null,null,null,null,"⑧",null,null,null,null,null,null,null,null,"台",null,null,2033,"a\na\na"]
[null,null,"（参考）電動車割合",null,null,null,null,"⑨＝（①＋②＋③＋⑧）／⑥×100",null,null,null,null,{"$f":"IF(AND(M19+M20+M21+M26>0,M24>0),(M19+M20+M21+M26)/M24*100,0)","v":0},null,null,null,"％",null,null,2034,"a\na\na"]
[null,null,{"$f":"IF(AND('表紙、項目Ⅰ'!$A$8=0,'表紙、項目Ⅰ'!$A$9=2),W28,V28)","v":"　（３）バイオ燃料・合成燃料を使用する自動車（車両総重量８トン以下の貨物自動車）に係る参考情報"},null,null,null,null,null,null,null,null,null,null,null,null,null,null,null,null,2035,"a\na","　（３）バイオ燃料・合成燃料を使用する自動車（車両総重量８トン以下の貨物自動車）に係る参考情報","　（３）バイオ燃料・合成燃料を使用する自動車（バス、タクシー）に係る参考情報"]
[null,null,"燃料の種類\n（バイオ燃料又は合成燃料）",null,null,null,"混合割合",null,"目標年度における\nバイオ燃料又は合成燃料の\n使用量の見込み",null,null,null,null,"目標年度における\n台数の見込み",null,null,null,null,null,2036,"a\na\na\na"]
[null,null,null,null,null,null,null,"％",null,null,null,null,"kl",null,null,null,"台",null,null,2037,"a\na\na"]
[null,null,null,null,null,null,null,"％",null,null,null,null,"kl",null,null,null,"台",null,null,2038,"a\na\na"]
[null,null,null,null,null,null,null,null,null,null,null,null,null,null,null,null,null,null,null,2039]
[null,null,null,null,null,null,null,null,null,null,null,null,null,null,null,null,null,null,null,2040]
[null,null,null,null,null,null,null,null,null,null,null,null,null,null,null,null,null,null,null,2041]
[null,null,null,null,null,null,null,null,null,null,null,null,null,null,null,null,null,null,null,2042]
[null,null,null,null,null,null,null,null,null,null,null,null,null,null,null,null,null,null,null,2043]
[null,null,null,null,null,null,null,null,null,null,null,null,null,null,null,null,null,null,null,2044]

{"sheet":"項目Ⅲ２.","index":7,"n_rows":37,"n_cols":21,"rows_kept":37,"cut":false,"hidden":false,"merged":[[29,2,29,5],[29,8,29,11],[29,13,29,15],[30,2,30,5],[30,8,30,11],[30,13,30,15],[26,2,26,6],[26,7,26,11],[26,12,26,15],[28,2,28,5],[28,6,28,7],[28,8,28,12],[28,13,28,16],[24,2,24,6],[24,7,24,11],[24,12,24,15],[25,2,25,6],[25,7,25,11],[25,12,25,15],[22,2,22,6],[22,7,22,11],[22,12,22,15],[23,2,23,6],[23,7,23,11],[23,12,23,15],[20,2,20,6],[20,7,20,11],[20,12,20,15],[21,2,21,6],[21,7,21,11],[21,12,21,15],[18,2,18,6],[18,7,18,11],[18,12,18,15],[19,2,19,6],[19,7,19,11],[19,12,19,15],[13,2,13,11],[13,12,13,15],[14,3,14,16],[16,2,17,11],[16,12,16,16],[17,12,17,15],[5,2,5,17],[7,4,7,5],[7,8,7,9],[9,2,9,17],[10,2,12,11],[10,12,11,16],[12,12,12,15]]}
[]
[]
[]
[]
[1]
["貨",null,null,null,null,null,null,null,null,null,null,null,null,null,null,null,null,null,null,null,"a\na"]
[]
[false,null,null,null,null,null,null,null,null,null,null,null,null,null,null,null,null,null,null,{"$f":"T9+-1","v":2014}]
[null,null,null,null,null,null,null,null,null,null,null,null,null,null,null,null,null,null,null,2015]
[null,null,"　（４）旅客輸送に係る電気車における非化石電気の使用割合",null,null,null,null,null,null,null,null,null,null,null,null,null,null,null,null,{"$f":"T11+-1","v":2016},"a"]
[null,"　",null,null,null,null,null,null,null,null,null,null,"目標",null,null,null,null,null,null,2017]
[null,null,null,null,null,null,null,null,null,null,null,null,null,null,null,null,null,null,null,2018]
[false,null,null,null,null,null,null,null,null,null,null,null,{"$f":"IF('項目Ⅲ１.~２.'!$A$8=FALSE,'項目Ⅲ１.~２.'!$I$8,\"\")","v":2030},null,null,null,"年度",null,null,2019]
[false,null,"・　使用電気全体（自家発電を含む。）\n・　外部調達電気\nに占める非化石エネルギーの割合",null,null,null,null,null,null,null,null,null,null,null,null,null,"％",null,null,2020,"a\na\na\na"]
[null,null,"備考","非化石電気の割合（使用電気全体（自家発電を含む。）又は外部調達電気）は、記載する項目に☑印を付すこと。",null,null,null,null,null,null,null,null,null,null,null,null,null,null,null,2021,"a\na\na"]
[null,null,"　（５）非化石エネルギー自動車の使用割合（バス、タクシー）",null,null,null,null,null,null,null,null,null,null,null,null,null,null,null,null,{"$f":"T17+-1","v":2022}]
[null,null,"区分",null,null,null,null,null,null,null,null,null,"目標",null,null,null,null,null,null,2023,"a\na\na"]
[null,null,null,null,null,null,null,null,null,null,null,null,{"$f":"IF('項目Ⅲ１.~２.'!$A$8=FALSE,'項目Ⅲ１.~２.'!$I$8,\"\")","v":2030},null,null,null,"年度",null,null,{"$f":"T17+1","v":2024},"a"]
[null,null,"電気自動車",null,null,null,null,"①",null,null,null,null,null,null,null,null,"台",null,null,{"$f":"T18+1","v":2025},"a\na\na"]
[null,null,"水素自動車\n（燃料電池自動車を含む。）",null,null,null,null,"②",null,null,null,null,null,null,null,null,"台",null,null,2026,"a\na\na"]
[null,null,"プラグインハイブリッド自動車",null,null,null,null,"③",null,null,null,null,null,null,null,null,"台",null,null,2027,"a\na\na"]
[null,null,"専らバイオ燃料・合成燃料を\n使用する自動車",null,null,null,null,"④",null,null,null,null,null,null,null,null,"台",null,null,2028,"a\na\na"]
[null,null,"非化石エネルギー自動車の合計",null,null,null,null,"⑤＝①＋②＋③＋④",null,null,null,null,{"$f":"SUM(M19:P22)","v":0},null,null,null,"台",null,null,2029,"a\na\na"]
[null,null,"旅客輸送に使用する自動車の合計",null,null,null,null,"⑥",null,null,null,null,null,null,null,null,"台",null,null,2030,"a\na\na"]
[null,null,"非化石エネルギー自動車割合",null,null,null,null,"⑦＝⑤／⑥×100",null,null,null,null,{"$f":"IF(AND(M23>0,M24>0),M23/M24*100,0)","v":0},null,null,null,"％",null,null,2031,"a\na\na"]
[null,null,"（参考）ハイブリッド自動車",null,null,null,null,"⑧",null,null,null,null,null,null,null,null,"台",null,null,2032,"a\na\na"]
[null,null,"（参考）電動車割合",null,null,null,null,"⑨＝（①＋②＋③＋⑧）／⑥×100",null,null,null,null,{"$f":"IF(AND(M19+M20+M21+M26>0,M24>0),(M19+M20+M21+M26)/M24*100,0)","v":0},null,null,null,"％",null,null,2033,"a\na\na"]
[null,null,"　（３）バイオ燃料・合成燃料を使用する自動車（バス、タクシー）に係る参考情報",null,null,null,null,null,null,null,null,null,null,null,null,null,null,null,null,2034,"a\na"]
[null,null,"燃料の種類\n（バイオ燃料又は合成燃料）",null,null,null,"混合割合",null,"目標年度における\nバイオ燃料又は合成燃料の\n使用量の見込み",null,null,null,null,"目標年度における\n台数の見込み",null,null,null,null,null,2035,"a\na\na\na"]
[null,null,null,null,null,null,null,"％",null,null,null,null,"kl",null,null,null,"台",null,null,2036,"a\na\na"]
[null,null,null,null,null,null,null,"％",null,null,null,null,"kl",null,null,null,"台",null,null,2037,"a\na\na"]
[null,null,null,null,null,null,null,null,null,null,null,null,null,null,null,null,null,null,null,2038]
[null,null,null,null,null,null,null,null,null,null,null,null,null,null,null,null,null,null,null,2039]
[null,null,null,null,null,null,null,null,null,null,null,null,null,null,null,null,null,null,null,2040]
[null,null,null,null,null,null,null,null,null,null,null,null,null,null,null,null,null,null,null,2041]
[null,null,null,null,null,null,null,null,null,null,null,null,null,null,null,null,null,null,null,2042]
[null,null,null,null,null,null,null,null,null,null,null,null,null,null,null,null,null,null,null,2043]

{"sheet":"項目Ⅲ２.~３.","index":8,"n_rows":37,"n_cols":24,"rows_kept":37,"cut":false,"hidden":false,"merged":[[21,2,21,13],[22,2,22,13],[23,2,23,13],[24,2,24,13],[25,2,25,13],[21,14,21,16],[22,14,22,16],[23,14,23,16],[24,14,24,16],[25,14,25,16],[15,5,15,16],[16,5,16,16],[17,5,17,16],[18,5,18,16],[19,2,19,16],[15,2,15,4],[16,2,16,4],[20,14,20,16],[20,2,20,13],[17,2,17,4],[18,2,18,4],[5,2,5,16],[12,2,12,16],[13,2,13,4],[14,2,14,4],[13,5,13,16],[14,5,14,16],[10,14,10,16],[9,14,9,16],[8,14,8,16],[7,14,7,16],[6,14,6,16],[11,2,11,4],[11,5,11,13],[11,14,11,16],[6,2,6,4],[7,2,7,4],[8,2,8,4],[9,2,9,4],[10,2,10,4],[6,5,6,13],[7,5,7,13],[8,5,8,13],[9,5,9,13],[10,5,10,13]]}
[]
[]
[]
[]
[1]
["貨",null,{"$f":"IF('表紙、項目Ⅰ'!$A$8=1,X6,IF('表紙、項目Ⅰ'!$A$9=0,V6,W6))","v":"　（７）その他定量的な目標"},null,null,null,null,null,null,null,null,null,null,null,null,null,null,null,null,null,null,"　（２）その他定量的な目標","　（４）その他定量的な目標","　（７）その他定量的な目標"]
[null,null,"年度",null,null,"内容",null,null,null,null,null,null,null,null,"目標数値"]
[null,null,null,null,null,null,null,null,null,null,null,null,null,null,null,null,null,null,null,{"$f":"T9+-1","v":2015},"a\na\na"]
[null,null,null,null,null,null,null,null,null,null,null,null,null,null,null,null,null,null,null,2016,"a\na\na"]
[null,null,null,null,null,null,null,null,null,null,null,null,null,null,null,null,null,null,null,{"$f":"T11+-1","v":2017},"a\na\na"]
[null,"　",null,null,null,null,null,null,null,null,null,null,null,null,null,null,null,null,null,2018,"a\na\na"]
[null,null,null,null,null,null,null,null,null,null,null,null,null,null,null,null,null,null,null,2019,"a\na\na"]
[null,null,"２－２．定性的な目標",null,null,null,null,null,null,null,null,null,null,null,null,null,null,null,null,2020,"a\na\na"]
[null,null,"年度",null,null,"内容",null,null,null,null,null,null,null,null,null,null,null,null,null,2021,{"$f":"IF(C14=\"\",\"a\"&CHAR(10)&\"a\"&CHAR(10),C14&CHAR(10))","v":"年度\n"},{"$f":"IF(F14=\"\",\"a\"&CHAR(10)&\"a\"&CHAR(10),F14&CHAR(10))","v":"内容\n"},{"$f":"IF(M14=\"\",\"a\"&CHAR(10)&\"a\"&CHAR(10),M14&CHAR(10))","v":"a\na\n"},{"$f":"IF(P14=\"\",\"a\"&CHAR(10)&\"a\"&CHAR(10),P14&CHAR(10))","v":"a\na\n"}]
[null,null,null,null,null,null,null,null,null,null,null,null,null,null,null,null,null,null,null,2022,{"$f":"IF(C15=\"\",\"a\"&CHAR(10)&\"a\"&CHAR(10),C15&CHAR(10))","v":"a\na\n"},{"$f":"IF(F15=\"\",\"a\"&CHAR(10)&\"a\"&CHAR(10),F15&CHAR(10))","v":"a\na\n"},{"$f":"IF(M15=\"\",\"a\"&CHAR(10)&\"a\"&CHAR(10),M15&CHAR(10))","v":"a\na\n"},{"$f":"IF(P15=\"\",\"a\"&CHAR(10)&\"a\"&CHAR(10),P15&CHAR(10))","v":"a\na\n"}]
[null,null,null,null,null,null,null,null,null,null,null,null,null,null,null,null,null,null,null,{"$f":"T17+-1","v":2023},"a\na\n","a\na\n","a\na\n","a\na\n"]
[null,null,null,null,null,null,null,null,null,null,null,null,null,null,null,null,null,null,null,2024,"a\na\n","a\na\n","a\na\n","a\na\n"]
[null,null,null,null,null,null,null,null,null,null,null,null,null,null,null,null,null,null,null,{"$f":"T17+1","v":2025},"a\na\n","a\na\n","a\na\n","a\na\n"]
[null,null,null,null,null,null,null,null,null,null,null,null,null,null,null,null,null,null,null,{"$f":"T18+1","v":2026},"a\na\n","a\na\n","a\na\n","a\na\n"]
[null,null,"３．目標を達成するために取り組む措置（計画内容）",null,null,null,null,null,null,null,null,null,null,null,null,null,null,null,null,2027,null,"a\na\n","a\na\n","a\na\n"]
[null,null,"内容",null,null,null,null,null,null,null,null,null,null,null,"実施時期",null,null,null,null,2028,"内容\n","a\na\n","a\na\n","a\na\n"]
[null,null,null,null,null,null,null,null,null,null,null,null,null,null,null,null,null,null,null,2029,"a\na\n","a\na\n","a\na\n","a\na\n"]
[null,null,null,null,null,null,null,null,null,null,null,null,null,null,null,null,null,null,null,2030,"a\na\n","a\na\n","a\na\n","a\na\n"]
[null,null,null,null,null,null,null,null,null,null,null,null,null,null,null,null,null,null,null,2031,"a\na\n","a\na\n","a\na\n","a\na\n"]
[null,null,null,null,null,null,null,null,null,null,null,null,null,null,null,null,null,null,null,2032,"a\na\n","a\na\n","a\na\n","a\na\n"]
[null,null,null,null,null,null,null,null,null,null,null,null,null,null,null,null,null,null,null,2033,"a\na\n","a\na\n","a\na\n","a\na\n"]
[null,null,null,null,null,null,null,null,null,null,null,null,null,null,null,null,null,null,null,2034,"a\na\n","a\na\n","a\na\n","a\na\n"]
[null,null,null,null,null,null,null,null,null,null,null,null,null,null,null,null,null,null,null,2035,"a\na\n","a\na\n","a\na\n","a\na\n"]
[null,null,null,null,null,null,null,null,null,null,null,null,null,null,null,null,null,null,null,2036]
[null,null,null,null,null,null,null,null,null,null,null,null,null,null,null,null,null,null,null,2037]
[null,null,null,null,null,null,null,null,null,null,null,null,null,null,null,null,null,null,null,2038]
[null,null,null,null,null,null,null,null,null,null,null,null,null,null,null,null,null,null,null,2039]
[null,null,null,null,null,null,null,null,null,null,null,null,null,null,null,null,null,null,null,2040]
[null,null,null,null,null,null,null,null,null,null,null,null,null,null,null,null,null,null,null,2041]
[null,null,null,null,null,null,null,null,null,null,null,null,null,null,null,null,null,null,null,2042]
[null,null,null,null,null,null,null,null,null,null,null,null,null,null,null,null,null,null,null,2043]
[null,null,null,null,null,null,null,null,null,null,null,null,null,null,null,null,null,null,null,2044]

{"sheet":"項目Ⅲ４.(削除)","index":9,"n_rows":20,"n_cols":9,"rows_kept":20,"cut":false,"hidden":false,"merged":[[5,2,5,4],[7,2,9,2],[7,3,9,3],[7,4,9,4]]}
[]
[]
[]
[]
[1]
["貨",null,"４．前年度計画書との比較（削除された計画）"]
[]
[null,"　","対　策","削　除　さ　れ　た　計　画","理　由"]
[]
[]
[null,null,null,null,null,null,{"$f":"IF(C11=\"\",\"a\"&CHAR(10)&\"a\"&CHAR(10)&\"a\"&CHAR(10),C11&CHAR(10))","v":"a\na\na\n"},{"$f":"IF(D11=\"\",\"a\"&CHAR(10)&\"a\"&CHAR(10)&\"a\"&CHAR(10),D11&CHAR(10))","v":"a\na\na\n"},{"$f":"IF(E11=\"\",\"a\"&CHAR(10)&\"a\"&CHAR(10)&\"a\"&CHAR(10),E11&CHAR(10))","v":"a\na\na\n"}]
[null,null,null,null,null,null,{"$f":"IF(C12=\"\",\"a\"&CHAR(10)&\"a\"&CHAR(10)&\"a\"&CHAR(10),C12&CHAR(10))","v":"a\na\na\n"},"a\na\na\n","a\na\na\n"]
[null,null,null,null,null,null,"a\na\na\n","a\na\na\n","a\na\na\n"]
[null,null,null,null,null,null,"a\na\na\n","a\na\na\n","a\na\na\n"]
[null,null,null,null,null,null,"a\na\na\n","a\na\na\n","a\na\na\n"]
[null,null,null,null,null,null,"a\na\na\n","a\na\na\n","a\na\na\n"]
[null,null,null,null,null,null,"a\na\na\n","a\na\na\n","a\na\na\n"]
[null,null,null,null,null,null,"a\na\na\n","a\na\na\n","a\na\na\n"]
[null,null,null,null,null,null,"a\na\na\n","a\na\na\n","a\na\na\n"]
[null,null,null,null,null,null,"a\na\na\n","a\na\na\n","a\na\na\n"]

{"sheet":"項目Ⅲ４.(追加)","index":10,"n_rows":20,"n_cols":10,"rows_kept":20,"cut":false,"hidden":false,"merged":[[5,2,5,4],[7,2,9,2],[7,3,9,3],[7,4,9,4]]}
[]
[]
[]
[]
[1]
["貨",null,"４．前年度計画書との比較（追加された計画）"]
[]
[null,"　","対　策","追　加　さ　れ　た　計　画","理　由"]
[]
[]
[null,null,null,null,null,null,null,{"$f":"IF(C11=\"\",\"a\"&CHAR(10)&\"a\"&CHAR(10)&\"a\"&CHAR(10),C11&CHAR(10))","v":"a\na\na\n"},{"$f":"IF(D11=\"\",\"a\"&CHAR(10)&\"a\"&CHAR(10)&\"a\"&CHAR(10),D11&CHAR(10))","v":"a\na\na\n"},{"$f":"IF(E11=\"\",\"a\"&CHAR(10)&\"a\"&CHAR(10)&\"a\"&CHAR(10),E11&CHAR(10))","v":"a\na\na\n"}]
[null,null,null,null,null,null,null,{"$f":"IF(C12=\"\",\"a\"&CHAR(10)&\"a\"&CHAR(10)&\"a\"&CHAR(10),C12&CHAR(10))","v":"a\na\na\n"},"a\na\na\n","a\na\na\n"]
[null,null,null,null,null,null,null,"a\na\na\n","a\na\na\n","a\na\na\n"]
[null,null,null,null,null,null,null,"a\na\na\n","a\na\na\n","a\na\na\n"]
[null,null,null,null,null,null,null,"a\na\na\n","a\na\na\n","a\na\na\n"]
[null,null,null,null,null,null,null,"a\na\na\n","a\na\na\n","a\na\na\n"]
[null,null,null,null,null,null,null,"a\na\na\n","a\na\na\n","a\na\na\n"]
[null,null,null,null,null,null,null,"a\na\na\n","a\na\na\n","a\na\na\n"]
[null,null,null,null,null,null,null,"a\na\na\n","a\na\na\n","a\na\na\n"]
[null,null,null,null,null,null,null,"a\na\na\n","a\na\na\n","a\na\na\n"]

{"sheet":"項目Ⅲ５.","index":11,"n_rows":39,"n_cols":12,"rows_kept":39,"cut":false,"hidden":false,"merged":[[5,2,5,4],[7,2,8,4],[6,2,6,4]]}
[]
[]
[]
[]
[1]
["貨",null,"５．その他非化石エネルギーへの転換に関する事項及び参考情報"]
[]
[null,"　",null,null,null,null,null,"a\na\na\na\na\na\na\na\na\na\na\na\na\na\na\na"]
[null,null,null,null,null,null,null,"a"]
[]
[null,null,"備考",{"$f":"H11","v":"１"},{"$f":"IF('表紙、項目Ⅰ'!$A$8=1,L25,IF('表紙、項目Ⅰ'!$A$9=1,I25,IF('表紙、項目Ⅰ'!$A$9=2,J25,IF('表紙、項目Ⅰ'!$A$9=3,K25,\"\"))))","v":"用紙の大きさは、日本産業規格Ａ４とすること。"},null,null,"１",{"$f":"IF(AND('表紙、項目Ⅰ'!$A$8=0,'表紙、項目Ⅰ'!$A$9=3),$I$35,$I$35)","v":"a"}]
[null,null,null,{"$f":"H12","v":"２"},{"$f":"IF('表紙、項目Ⅰ'!$A$8=1,L26,IF('表紙、項目Ⅰ'!$A$9=1,I26,IF('表紙、項目Ⅰ'!$A$9=2,J26,IF('表紙、項目Ⅰ'!$A$9=3,K26,\"\"))))","v":"該当事項はその直前に付してある番号を○で囲むこと。"},null,null,"２",{"$f":"IF(AND('表紙、項目Ⅰ'!$A$8=0,'表紙、項目Ⅰ'!$A$9=3),$I$35,$I$35)","v":"a"}]
[null,null,null,"３",{"$f":"IF('表紙、項目Ⅰ'!$A$8=1,L27,IF('表紙、項目Ⅰ'!$A$9=1,I27,IF('表紙、項目Ⅰ'!$A$9=2,J27,IF('表紙、項目Ⅰ'!$A$9=3,K27,\"\"))))","v":"計画書冒頭の※印を付した欄には記入しないこと。"},null,null,"３",{"$f":"IF(AND('表紙、項目Ⅰ'!$A$8=0,'表紙、項目Ⅰ'!$A$9=3),$I$35,$I$35)","v":"a"}]
[null,null,null,"４",{"$f":"IF('表紙、項目Ⅰ'!$A$8=1,L28,IF('表紙、項目Ⅰ'!$A$9=1,I28,IF('表紙、項目Ⅰ'!$A$9=2,J28,IF('表紙、項目Ⅰ'!$A$9=3,K28,\"\"))))","v":"Ⅱの２の「計画内容」の欄については、対策の種類別に記入すること。"},null,null,"４",{"$f":"IF(AND('表紙、項目Ⅰ'!$A$8=0,'表紙、項目Ⅰ'!$A$9=3),$I$36,$I$35)","v":"a"}]
[null,null,null,"５",{"$f":"IF('表紙、項目Ⅰ'!$A$8=1,L29,IF('表紙、項目Ⅰ'!$A$9=1,I29,IF('表紙、項目Ⅰ'!$A$9=2,J29,IF('表紙、項目Ⅰ'!$A$9=3,K29,\"\"))))","v":"Ⅱの２の「エネルギー使用合理化期待効果」の欄には、基準年度を報告年度とし、計画完了年度における年間エネルギーの使用の合理化効果を原油の数量に換算して「ｋｌ」により記入すること。"},null,null,"５",{"$f":"IF(AND('表紙、項目Ⅰ'!$A$8=0,'表紙、項目Ⅰ'!$A$9=3),$I$36,$I$36)","v":"aaaaaaaaaaaaaaaaaaaaaaaaaaaaaaaaaaaaaaaaaaaaaaaaaaaaaaaaaaaaaaaaaaaaaaaaaaaaaaaaaaaaaaaaaaaa"}]
[null,null,null,"６",{"$f":"IF('表紙、項目Ⅰ'!$A$8=1,L30,IF('表紙、項目Ⅰ'!$A$9=1,I30,IF('表紙、項目Ⅰ'!$A$9=2,J30,IF('表紙、項目Ⅰ'!$A$9=3,K30,\"\"))))","v":"Ⅱの３及びⅢの４には、Ⅱの２並びにⅢの２及び３について、それぞれ前年度と比較して記入すること。なお、該当する対策が複数になる場合には、新たに欄を設けて記入すること。"},null,null,"６",{"$f":"IF(AND('表紙、項目Ⅰ'!$A$8=0,'表紙、項目Ⅰ'!$A$9=3),$I$38,$I$36)","v":"aaaaaaaaaaaaaaaaaaaaaaaaaaaaaaaaaaaaaaaaaaaaaaaaaaaaaaaaaaaaaaaaaaaaaaaaaaaaaaaaaaaaaaaaaaaa"}]
[null,null,null,{"$f":"IF(AND('表紙、項目Ⅰ'!$A$8=0,'表紙、項目Ⅰ'!$A$9=3),\"\",H17)","v":"７"},{"$f":"IF('表紙、項目Ⅰ'!$A$8=1,L31,IF('表紙、項目Ⅰ'!$A$9=1,I31,IF('表紙、項目Ⅰ'!$A$9=2,J31,\"\")))","v":"Ⅱの４には、Ⅱの２の欄に記入した計画に関連する上位の計画（グループ企業全体に関連するプロジェクト、全体計画等）がある場合には、必要に応じ、その計画内容及び計画における当該事業者の位置付け等について記入すること。また、この欄のみでは記入が困難な場合には、関係資料を添付すること。"},null,null,"７",{"$f":"IF(AND('表紙、項目Ⅰ'!$A$8=0,'表紙、項目Ⅰ'!$A$9=3),$I$35,$I$38)","v":"aaaaaaaaaaaaaaaaaaaaaaaaaaaaaaaaaaaaaaaaaaaaaaaaaaaaaaaaaaaaaaaaaaaaaaaaaaaaaaaaaaaaaaaaaaaaaaaaaaaaaaaaaaaaaaaaaaaaaaaaaaaaaaaaaaaaaaaaaaaaaaaaaaaaaaaaaaaaaaaaaaaaaaaaaaaaaaaaaaaaaaaaaaaaaaaaaaaaaaaaaaaaaaaaaaaaaaaaaaaaaaaaaaaaaaaaaaaaaaaaaaaaaaaaaaaaaaaaaaaaaaaaaaaaaaaaaa"}]
[null,null,null,{"$f":"IF(AND('表紙、項目Ⅰ'!$A$8=0,'表紙、項目Ⅰ'!$A$9=3),\"\",H18)","v":"８"},{"$f":"IF('表紙、項目Ⅰ'!$A$8=1,L32,IF('表紙、項目Ⅰ'!$A$9=1,I32,IF('表紙、項目Ⅰ'!$A$9=2,J32,\"\")))","v":"Ⅲの２－１（２）及び（５）の「非化石エネルギー自動車」とは、電気自動車、水素自動車（燃料電池自動車を含む。）、プラグインハイブリッド自動車及び専らバイオ燃料・合成燃料を使用する自動車をいう。「目標」の欄には、それぞれ値を記入すること。"},null,null,"８",{"$f":"IF(AND('表紙、項目Ⅰ'!$A$8=0,'表紙、項目Ⅰ'!$A$9=3),$I$35,$I$37)","v":"aaaaaaaaaaaaaaaaaaaaaaaaaaaaaaaaaaaaaaaaaaaaaaaaaaaaaaaaaaaaaaaaaaaaaaaaaaaaaaaaaaaaaaaaaaaaaaaaaaaaaaaaaaaaaaaaaaaaaaaaaaaaaaaaaaaaaaaaaaaaaaaaaaaaaaaaaaaaaaaaaaaaaaaaaaaaaaaaaaaaaaa"}]
[null,null,null,{"$f":"IF(AND('表紙、項目Ⅰ'!$A$8=0,'表紙、項目Ⅰ'!$A$9=3),\"\",H19)","v":"９"},{"$f":"IF('表紙、項目Ⅰ'!$A$8=1,L33,IF('表紙、項目Ⅰ'!$A$9=1,I33,IF('表紙、項目Ⅰ'!$A$9=2,J33,\"\")))","v":"Ⅲの２－１は、Ⅰの「貨客輸送区分」が１の場合は（１）及び（７）を、２又は３の場合は（２）、（３）及び（７）を、５の場合は（４）及び（７）を、６又は７の場合は（５）から（７）までを記載すること。"},null,null,"９",{"$f":"IF(AND('表紙、項目Ⅰ'!$A$8=0,'表紙、項目Ⅰ'!$A$9=3),$I$35,$I$36)","v":"aaaaaaaaaaaaaaaaaaaaaaaaaaaaaaaaaaaaaaaaaaaaaaaaaaaaaaaaaaaaaaaaaaaaaaaaaaaaaaaaaaaaaaaaaaaa"}]
[]
[]
[]
[]
[null,null,null,null,null,null,null,null,"貨物","旅客","航空","認定"]
[null,null,null,null,null,null,null,"１","用紙の大きさは、日本産業規格Ａ４とすること。","用紙の大きさは、日本産業規格Ａ４とすること。","用紙の大きさは、日本産業規格Ａ４とすること。","用紙の大きさは、日本産業規格Ａ４とすること。"]
[null,null,null,null,null,null,null,"２","該当事項はその直前に付してある番号を○で囲むこと。","該当事項はその直前に付してある番号を○で囲むこと。","計画書冒頭の※印を付した欄には記入しないこと。","該当事項はその直前に付してある番号を○で囲むこと。"]
[null,null,null,null,null,null,null,"３","計画書冒頭の※印を付した欄には記入しないこと。","計画書冒頭の※印を付した欄には記入しないこと。","Ⅱの２の「計画内容」の欄については、対策の種類別に記入すること。","計画書冒頭の※印を付した欄には記入しないこと。"]
[null,null,null,null,null,null,null,"４","Ⅱの２の「計画内容」の欄については、対策の種類別に記入すること。","Ⅱの２の「計画内容」の欄については、対策の種類別に記入すること。","Ⅱの２の「エネルギー使用合理化期待効果」の欄には、基準年度を報告年度とし、計画完了年度における年間エネルギーの使用の合理化効果を原油の数量に換算して「ｋｌ」により記入すること。","Ⅱの２の「計画内容」の欄については、対策の種類別に記入すること。"]
[null,null,null,null,null,null,null,"５","Ⅱの２の「エネルギー使用合理化期待効果」の欄には、基準年度を報告年度とし、計画完了年度における年間エネルギーの使用の合理化効果を原油の数量に換算して「ｋｌ」により記入すること。","Ⅱの２の「エネルギー使用合理化期待効果」の欄には、基準年度を報告年度とし、計画完了年度における年間エネルギーの使用の合理化効果を原油の数量に換算して「ｋｌ」により記入すること。","Ⅱの３及びⅢの４には、Ⅱの２並びにⅢの２及び３について、それぞれ前年度と比較して記入すること。なお、該当する項目が複数になる場合には、新たに欄を設けて記入すること。","Ⅱの２の「エネルギー使用合理化期待効果」の欄には、基準年度を報告年度とし、計画完了年度における年間エネルギーの使用の合理化効果を原油の数量に換算して「ｋｌ」により記入すること。"]
[null,null,null,null,null,null,null,"６","Ⅱの３及びⅢの４には、Ⅱの２並びにⅢの２及び３について、それぞれ前年度と比較して記入すること。なお、該当する項目が複数になる場合には、新たに欄を設けて記入すること。","Ⅱの３及びⅢの４には、Ⅱの２並びにⅢの２及び３について、それぞれ前年度と比較して記入すること。なお、該当する項目が複数になる場合には、新たに欄を設けて記入すること。","Ⅱの４には、Ⅱの２の欄に記入した計画に関連する上位の計画（グループ企業全体に関連するプロジェクト、全体計画等）がある場合には、必要に応じ、その計画内容及び計画における当該事業者の位置付け等について記入すること。また、この欄のみでは記入が困難な場合には、関係資料を添付すること。","Ⅱの３及びⅢの４には、Ⅱの２並びにⅢの２及び３について、それぞれ前年度と比較して記入すること。なお、該当する対策が複数になる場合には、新たに欄を設けて記入すること。"]
[null,null,null,null,null,null,null,"７","Ⅱの４には、Ⅱの２の欄に記入した計画に関連する上位の計画（グループ企業全体に関連するプロジェクト、全体計画等）がある場合には、必要に応じ、その計画内容及び計画における当該事業者の位置付け等について記入すること。また、この欄のみでは記入が困難な場合には、関係資料を添付すること。","Ⅱの４には、Ⅱの２の欄に記入した計画に関連する上位の計画（グループ企業全体に関連するプロジェクト、全体計画等）がある場合には、必要に応じ、その計画内容及び計画における当該事業者の位置付け等について記入すること。また、この欄のみでは記入が困難な場合には、関係資料を添付すること。",null,"Ⅱの４には、Ⅱの２の欄に記入した計画に関連する上位の計画（グループ企業全体に関連するプロジェクト、全体計画等）がある場合には、必要に応じ、その計画内容及び計画における当該事業者の位置付け等について記入すること。また、この欄のみでは記入が困難な場合には、関係資料を添付すること。"]
[null,null,null,null,null,null,null,"８","Ⅲの２－１（２）の「非化石エネルギー自動車」とは、電気自動車、水素自動車（燃料電池自動車を含む。）、プラグインハイブリッド自動車及び専らバイオ燃料・合成燃料を使用する自動車をいう。「目標」の欄には、それぞれ値を記入すること。","Ⅲの２－１（２）の「非化石エネルギー自動車」とは、電気自動車、水素自動車（燃料電池自動車を含む。）、プラグインハイブリッド自動車及び専らバイオ燃料・合成燃料を使用する自動車をいう。「目標」の欄には、それぞれ値を記入すること。",null,"Ⅲの２－１（２）及び（５）の「非化石エネルギー自動車」とは、電気自動車、水素自動車（燃料電池自動車を含む。）、プラグインハイブリッド自動車及び専らバイオ燃料・合成燃料を使用する自動車をいう。「目標」の欄には、それぞれ値を記入すること。"]
[null,null,null,null,null,null,null,"９","Ⅲの２－１は、Ⅰの「貨物輸送区分」が１の場合は（１）及び（４）を記載し、２又は３の場合は（２）から（４）までを記載すること。","Ⅲの２－１は、Ⅰの「旅客輸送区分」が１の場合は（１）及び（４）を記載し、２又は３の場合は（２）から（４）までを記載すること。",null,"Ⅲの２－１は、Ⅰの「貨客輸送区分」が１の場合は（１）及び（７）を、２又は３の場合は（２）、（３）及び（７）を、５の場合は（４）及び（７）を、６又は７の場合は（５）から（７）までを記載すること。"]
[]
[null,null,null,null,null,null,null,null,"a"]
[null,null,null,null,null,null,null,null,"aaaaaaaaaaaaaaaaaaaaaaaaaaaaaaaaaaaaaaaaaaaaaaaaaaaaaaaaaaaaaaaaaaaaaaaaaaaaaaaaaaaaaaaaaaaa"]
[null,null,null,null,null,null,null,null,"aaaaaaaaaaaaaaaaaaaaaaaaaaaaaaaaaaaaaaaaaaaaaaaaaaaaaaaaaaaaaaaaaaaaaaaaaaaaaaaaaaaaaaaaaaaaaaaaaaaaaaaaaaaaaaaaaaaaaaaaaaaaaaaaaaaaaaaaaaaaaaaaaaaaaaaaaaaaaaaaaaaaaaaaaaaaaaaaaaaaaaa"]
[null,null,null,null,null,null,null,null,"aaaaaaaaaaaaaaaaaaaaaaaaaaaaaaaaaaaaaaaaaaaaaaaaaaaaaaaaaaaaaaaaaaaaaaaaaaaaaaaaaaaaaaaaaaaaaaaaaaaaaaaaaaaaaaaaaaaaaaaaaaaaaaaaaaaaaaaaaaaaaaaaaaaaaaaaaaaaaaaaaaaaaaaaaaaaaaaaaaaaaaaaaaaaaaaaaaaaaaaaaaaaaaaaaaaaaaaaaaaaaaaaaaaaaaaaaaaaaaaaaaaaaaaaaaaaaaaaaaaaaaaaaaaaaaaaaa"]
[null,null,null,null,null,null,null,null,"aaaaaaaaaaaaaaaaaaaaaaaaaaaaaaaaaaaaaaaaaaaaaaaaaaaaaaaaaaaaaaaaaaaaaaaaaaaaaaaaaaaaaaaaaaaaaaaaaaaaaaaaaaaaaaaaaaaaaaaaaaaaaaaaaaaaaaaaaaaaaaaaaaaaaaaaaaaaaaaaaaaaaaaaaaaaaaaaaaaaaaaaaaaaaaaaaaaaaaaaaaaaaaaaaaaaaaaaaaaaaaaaaaaaaaaaaaaaaaaaaaaaaaaaaaaaaaaaaaaaaaaaaaaaaaaaaaaaaaaaaaaaaaaaaaaaaaaaaaaaaaaaaaaaaaaaaaaaaaaaaaaaaaaaaaaaaaaaaaaaaaaaaaaaaaaaaaaaaaaaaaaaa"]

{"sheet":"エラーリスト","index":12,"n_rows":5,"n_cols":4,"rows_kept":5,"cut":false,"hidden":false,"merged":[]}
[]
[]
[]
[]
["シート名","項目","エラーレベル","エラー内容"]

{"sheet":"チェック","index":13,"n_rows":62,"n_cols":5,"rows_kept":62,"cut":false,"hidden":true,"merged":[]}
["エラーコード","項目名","メッセージ","エラーレベル","シート名"]
[201,"地方運輸局長","地方運輸局長名が未入力です","エラー","表紙、項目Ⅰ"]
[202,"日付（西暦）","西暦が未入力です","エラー","表紙、項目Ⅰ"]
[203,"日付（月）","月を正しく入力してください","エラー","表紙、項目Ⅰ"]
[204,"日付（日）","日付を正しく入力してください","エラー","表紙、項目Ⅰ"]
[205,"住所","郵便番号が未入力です","エラー","表紙、項目Ⅰ"]
[206,"住所","住所が未入力です","エラー","表紙、項目Ⅰ"]
[207,"法人名","法人名が未入力です","エラー","表紙、項目Ⅰ"]
[208,"法人番号","法人番号が未入力です","エラー","表紙、項目Ⅰ"]
[209,"代表者の役職名","代表者の役職名が未入力です","エラー","表紙、項目Ⅰ"]
[210,"代表者の氏名","代表者の氏名が未入力です","エラー","表紙、項目Ⅰ"]
[211,"特定輸送事業者指定番号","特定輸送事業者指定番号が未入力です","エラー","表紙、項目Ⅰ"]
[212,"特定輸送事業者指定番号（所轄番号）","特定輸送事業者指定番号の所轄番号（５～６桁目）は”００”～”１１”を入力してください","エラー","表紙、項目Ⅰ"]
[213,"特定輸送事業者指定番号（都道府県番号）","特定輸送事業者指定番号の都道府県番号（７～８桁目）は”０１”～”４７”を入力してください","エラー","表紙、項目Ⅰ"]
[214,"特定輸送事業者指定番号（指定区分）","特定輸送事業者指定番号の指定区分（９～１０桁目）は、９桁目が”１”の場合、１０桁目は”１”～”４”を入力してください","エラー","表紙、項目Ⅰ"]
[215,"特定輸送事業者指定番号（指定区分）","特定輸送事業者指定番号の指定区分（９～１０桁目）は、９桁目が”２”の場合、１０桁目は”１”または”４”～”６”を入力してください","エラー","表紙、項目Ⅰ"]
[216,"特定輸送事業者指定番号（指定区分）","特定輸送事業者指定番号の指定区分（９～１０桁目）は、９桁目が”３”の場合、１０桁目は”０”を入力してください","エラー","表紙、項目Ⅰ"]
[217,"事業者名","事業者名が未入力です","エラー","表紙、項目Ⅰ"]
[218,"主たる事務所の所在地（郵便番号）","主たる事務所の所在地（郵便番号）が未入力です","エラー","表紙、項目Ⅰ"]
[219,"主たる事務所の所在地（住所）","主たる事務所の所在地（住所）が未入力です","エラー","表紙、項目Ⅰ"]
[220,"主たる事務所の所在地（電話番号）","主たる事務所の所在地（電話番号）が未入力です","警告","表紙、項目Ⅰ"]
[221,"主たる事務所の所在地（Fax）","主たる事務所の所在地（Fax）が未入力です","警告","表紙、項目Ⅰ"]
[222,"主たる事務所の所在地（e-mail）","主たる事務所の所在地（e_mail）が未入力です","警告","表紙、項目Ⅰ"]
[301,"Ⅱ１．計画期間","Ⅱ１．合理化計画期間が未入力です","警告","項目Ⅱ１．２．"]
[302,"Ⅱ１．計画期間","Ⅱ１．合理化計画期間の範囲が間違っています","エラー","項目Ⅱ１．２．"]
[303,"Ⅱ２．計画内容及びエネルギー使用合理化期待効果","Ⅱ２．合理化計画内容及び期待効果が未入力です","警告","項目Ⅱ１．２．"]
[304,"Ⅱ２．計画内容及びエネルギー使用合理化期待効果","Ⅱ２．合理化計画の「対策」「計画内容」のいずれかのみ入力されています","警告","項目Ⅱ１．２．"]
[305,"Ⅱ２．計画内容及びエネルギー使用合理化期待効果","Ⅱ２．合理化計画の「実施時期」または「期待効果」のみ入力されています","警告","項目Ⅱ１．２．"]
[401,"Ⅱ３．前年度計画との比較（削除された計画）","Ⅱ３．削除された合理化計画の「対策」「削除された計画」「理由」のいずれかが未入力です","警告","項目Ⅱ３．（削除）"]
[501,"Ⅱ３．前年度計画との比較（追加された計画）","Ⅱ３．追加された合理化計画の「対策」「追加された計画」「理由」のいずれかが未入力です","警告","項目Ⅱ３．（追加）"]
[601,"Ⅲ１．計画期間","Ⅲ１．非化石計画期間が未入力です","警告","項目Ⅲ１.~２."]
[602,"Ⅲ１．計画期間","Ⅲ１．非化石計画期間の範囲が間違っています","エラー","項目Ⅲ１.~２."]
[603,"Ⅲ２ー１．定量的な目標","Ⅲ２ー１．非化石電気使用割合の目標年度が未入力です","エラー","項目Ⅲ１.~２."]
[604,"Ⅲ２ー１．定量的な目標","Ⅲ２ー１．非化石電気使用割合が未入力です","エラー","項目Ⅲ１.~２."]
[605,"Ⅲ２ー１．定量的な目標","Ⅲ２ー１．使用電気が未選択です","エラー","項目Ⅲ１.~２."]
[606,"Ⅲ２ー１．定量的な目標","Ⅲ２ー１．非化石自動車の使用割合の目標年度が未入力です","エラー","項目Ⅲ１.~２."]
[607,"Ⅲ２ー１．定量的な目標","Ⅲ２ー１．非化石自動車の目標使用台数が未入力です","エラー","項目Ⅲ１.~２."]
[608,"Ⅲ２ー１．定量的な目標","Ⅲ２ー１．非化石自動車の目標使用台数の値に誤りがあります。","エラー","項目Ⅲ１.~２."]
[609,"Ⅲ２ー１．定量的な目標","Ⅲ２ー１．バイオ燃料・合成燃料を使用する自動車に係る参考情報に未入力箇所があります。","エラー","項目Ⅲ１.~２."]
[701,"Ⅲ２ー１．定量的な目標","Ⅲ２ー１．その他定量的な非化石目標の「年度」、「内容」、「目標数値」のいずれかが未入力です。","エラー","項目Ⅲ２.~３."]
[702,"Ⅲ２ー２．定性的な目標","Ⅲ２ー２．定性的な非化石目標が未入力です。","エラー","項目Ⅲ２.~３."]
[703,"Ⅲ２ー２．定性的な目標","Ⅲ２ー２．定性的な非化石目標の「年度」、「内容」のいずれかが未入力です。","エラー","項目Ⅲ２.~３."]
[704,"Ⅲ３．計画内容","Ⅲ３．非化石計画が未入力です。","エラー","項目Ⅲ２.~３."]
[705,"Ⅲ３．計画内容","Ⅲ３．非化石計画の「内容」、「実施時期」のいずれかが未入力です。","エラー","項目Ⅲ２.~３."]
[801,"Ⅲ４．前年度計画との比較（削除された計画）","Ⅲ４．削除された非化石計画の「対策」、「削除された計画」、「理由」のいずれかが未入力です。","エラー","項目Ⅲ４.(削除)"]
[901,"Ⅲ４．前年度計画との比較（追加された計画）","Ⅲ４．追加された非化石計画の「対策」、「追加された計画」、「理由」のいずれかが未入力です。","エラー","項目Ⅲ４.(追加)"]
[1001,"Ⅲ２ー１．定量的な目標","Ⅲ２ー１．SAF使用割合の目標年度が未入力です","エラー","項目Ⅲ１.~２."]
[1002,"Ⅲ２ー１．定量的な目標","Ⅲ２ー１．SAF使用割合が未入力です","エラー","項目Ⅲ１.~２."]
[1101,"Ⅲ２ー１．定量的な目標","Ⅲ２ー１．（貨物）非化石電気使用割合の目標年度が未入力です","エラー","項目Ⅲ１.~２."]
[1102,"Ⅲ２ー１．定量的な目標","Ⅲ２ー１．（貨物）非化石電気使用割合が未入力です","エラー","項目Ⅲ１.~２."]
[1103,"Ⅲ２ー１．定量的な目標","Ⅲ２ー１．（貨物）使用電気が未選択です","エラー","項目Ⅲ１.~２."]
[1104,"Ⅲ２ー１．定量的な目標","Ⅲ２ー１．（貨物）非化石自動車の使用割合の目標年度が未入力です","エラー","項目Ⅲ１.~２."]
[1105,"Ⅲ２ー１．定量的な目標","Ⅲ２ー１．（貨物）非化石自動車の目標使用台数が未入力です","エラー","項目Ⅲ１.~２."]
[1106,"Ⅲ２ー１．定量的な目標","Ⅲ２ー１．（貨物）非化石自動車の目標使用台数の値に誤りがあります。","エラー","項目Ⅲ１.~２."]
[1107,"Ⅲ２ー１．定量的な目標","Ⅲ２ー１．（貨物）バイオ燃料・合成燃料を使用する自動車に係る参考情報に未入力箇所があります。","エラー","項目Ⅲ１.~２."]
[1201,"Ⅲ２ー１．定量的な目標","Ⅲ２ー１．（旅客）非化石電気使用割合の目標年度が未入力です","エラー","項目Ⅲ２."]
[1202,"Ⅲ２ー１．定量的な目標","Ⅲ２ー１．（旅客）非化石電気使用割合が未入力です","エラー","項目Ⅲ２."]
[1203,"Ⅲ２ー１．定量的な目標","Ⅲ２ー１．（旅客）使用電気が未選択です","エラー","項目Ⅲ１.~２."]
[1204,"Ⅲ２ー１．定量的な目標","Ⅲ２ー１．（旅客）非化石自動車の使用割合の目標年度が未入力です","エラー","項目Ⅲ２."]
[1205,"Ⅲ２ー１．定量的な目標","Ⅲ２ー１．（旅客）非化石自動車の目標使用台数が未入力です","エラー","項目Ⅲ２."]
[1206,"Ⅲ２ー１．定量的な目標","Ⅲ２ー１．（旅客）非化石自動車の目標使用台数の値に誤りがあります。","エラー","項目Ⅲ２."]
[1207,"Ⅲ２ー１．定量的な目標","Ⅲ２ー１．（旅客）バイオ燃料・合成燃料を使用する自動車に係る参考情報に未入力箇所があります。","エラー","項目Ⅲ２."]